bitfinex-derivatives/quotes_ETHF0:USTF0_20240826
["timestamp","ask_amount","ask_price","bid_price","bid_amount"]
[1724714248716,0.00341429,2690.5,2690.4,54.90403443]
[1724714249013,0.00341429,2690.5,2690.4,54.33610098]
[1724714249422,0.00341429,2690.5,2690.4,54.90404498]
[1724714252715,0.00341429,2690.5,2690.4,54.90406173]
[1724714252923,0.00341429,2690.5,2690.4,51.69626173]
[1724714253221,0.00341429,2690.5,2690.4,54.90406173]
[1724714254512,0.00341429,2690.5,2690.4,54.90402966]
[1724714254714,0.3829,2690.8,2690.4,54.53244966]
[1724714255015,0.3829,2690.8,2690.7,1.34]
[1724714255215,0.3829,2690.8,2690.7,1.71154]
[1724714255510,0.3829,2690.8,2690.7,6.53258651]
[1724714255715,0.00282265,2690.8,2690.7,10.25203474]
[1724714256819,0.00282265,2690.8,2690.7,10.25187575]
[1724714258622,0.00282265,2690.8,2690.7,51.05187575]
[1724714259016,0.00282265,2690.8,2690.7,4.82353575]
[1724714259216,0.37434265,2690.8,2690.7,4.82353575]
[1724714260019,0.37434265,2690.8,2690.7,4.82365645]
[1724714260327,0.37434265,2690.8,2690.7,6.16365645]
[1724714262221,0.37434265,2690.8,2690.7,1.91052486]
[1724714263125,4.09114265,2690.8,2690.7,0.57052486]
[1724714263631,4.09114265,2690.8,2690.7,0.00264823]
[1724714263930,4.09114265,2690.8,2690.7,0.57052124]
[1724714264425,3.71962265,2690.8,2690.7,1.91052124]
[1724714264816,0.37642265,2690.8,2690.7,2.28206124]
[1724714265135,0.37642265,2690.8,2690.7,5.60018864]
[1724714265715,0.00282265,2690.8,2690.7,5.60018864]
[1724714265936,0.00282265,2690.8,2690.7,8.42778233]
[1724714266629,0.00282265,2690.8,2690.7,9.88804465]
[1724714267331,0.00282265,2690.8,2690.7,8.42778233]
[1724714267527,0.00282265,2690.8,2690.7,9.88800754]
[1724714268223,0.00282265,2690.8,2690.7,9.88800472]
[1724714270027,0.00282265,2690.8,2690.7,13.09580472]
[1724714270835,0.00282265,2690.8,2690.7,12.52793171]
[1724714271143,0.00282265,2690.8,2690.7,13.09573806]
[1724714272934,0.00282265,2690.8,2690.7,13.09574303]
[1724714273831,0.00282265,2690.8,2690.7,9.88794303]
[1724714274032,0.00282265,2690.8,2690.7,13.09574303]
[1724714274537,0.00282265,2690.8,2690.7,12.52793668]
[1724714274838,0.00282265,2690.8,2690.7,13.09572229]
[1724714275036,0.00282265,2690.8,2690.7,53.89572229]
[1724714276254,0.00282265,2690.8,2690.7,13.09572229]
[1724714276447,0.00282265,2690.8,2690.7,13.47322229]
[1724714277644,0.00282265,2690.8,2690.7,13.47322453]
[1724714278251,0.00282265,2690.8,2690.7,13.47326436]
[1724714278453,0.00282265,2690.8,2690.7,10.26546676]
[1724714278643,0.00282265,2690.8,2690.7,13.47326676]
[1724714278846,0.00282265,2690.8,2690.7,13.09576676]
[1724714279758,0.00282265,2690.8,2690.7,12.52793764]
[1724714279959,0.36912265,2690.8,2690.7,13.09574618]
[1724714280252,0.36912265,2690.8,2690.7,13.09575263]
[1724714281156,0.00282265,2690.8,2690.7,16.81255636]
[1724714281357,0.00282265,2690.8,2690.7,16.08913115]
[1724714283053,5.05962265,2690.8,2690.7,2.42857337]
[1724714283253,5.55303165,2690.8,2690.7,0.57046322]
[1724714283448,0.00282265,2690.8,2690.7,5.22839234]
[1724714283759,0.00282265,2690.8,2690.7,9.6920449]
[1724714284162,0.00282265,2690.8,2690.7,9.12422991]
[1724714284461,0.00282265,2690.8,2690.7,8.23191223]
[1724714284863,0.00282265,2690.8,2690.7,7.86037223]
[1724714285060,0.00282265,2690.8,2690.7,8.23191223]
[1724714285657,0.00282265,2690.8,2690.7,8.23181587]
[1724714286462,0.00282265,2690.8,2690.7,7.86027587]
[1724714286659,0.00282265,2690.8,2690.7,8.23181587]
[1724714287768,0.00282265,2690.8,2690.7,7.66442138]
[1724714288073,0.00282265,2690.8,2690.7,13.33027878]
[1724714288364,0.00282265,2690.8,2690.7,17.61346088]
[1724714289975,0.00282265,2690.8,2690.7,15.66440348]
[1724714290266,0.00282265,2690.8,2690.7,15.6642663]
[1724714290471,0.00282265,2690.8,2690.7,11.9474663]
[1724714291268,0.00282265,2690.8,2690.7,11.38044506]
[1724714291476,0.00282265,2690.8,2690.7,11.94744727]
[1724714292673,0.00282265,2690.8,2690.7,11.94756946]
[1724714294168,0.00282265,2690.8,2690.7,15.15536946]
[1724714294666,0.00282265,2690.8,2690.7,9.80530534]
[1724714294864,0.00282265,2690.8,2690.7,7.97928861]
[1724714294865,4.47774265,2690.8,2690.7,7.97928861]
[1724714295066,4.47774265,2690.8,2690.7,1.54282105]
[1724714295267,6.4279061,2690.8,2690.7,0.56975481]
[1724714295471,4.47774265,2690.8,2690.7,0.56975481]
[1724714295676,4.47774265,2690.8,2690.7,1.54282105]
[1724714296061,0.37155,2690.6,2690.5,1.45933242]
[1724714296272,6.35723,2690.6,2690.5,0.56727041]
[1724714296570,0.37159,2690.3,2690.2,0.97872865]
[1724714296774,1.83323945,2690.3,2690.2,0.97872865]
[1724714297170,1.83323945,2690.3,2690.2,0.98288891]
[1724714297373,0.37159,2690.3,2690.2,0.98288891]
[1724714297676,1.83323945,2690.3,2690.2,0.00974051]
[1724714297871,1.83323945,2690.3,2690.2,0.98288891]
[1724714298070,0.37159,2690.3,2690.2,0.98288891]
[1724714298375,0.37159,2690.3,2690.2,0.00974051]
[1724714299471,1.50729,2690.3,2690.2,0.00974051]
[1724714300471,5.22409,2690.3,2690.2,0.00974051]
[1724714300978,4.8525,2690.3,2690.2,0.00974051]
[1724714301271,4.8525,2690.3,2690.2,1.34974051]
[1724714301778,0.7564,2690.3,2690.2,1.34974051]
[1724714301971,0.3758,2690.3,2690.2,5.90333359]
[1724714302284,1.82664945,2690.6,2690.3,0.37158]
[1724714302469,0.3645,2690.5,2690.4,1.7001]
[1724714302782,0.3645,2690.5,2690.4,5.88209308]
[1724714303279,0.3645,2690.5,2690.4,6.25367308]
[1724714304468,2.19819945,2690.6,2690.5,0.37156]
[1724714304469,1.46164945,2690.6,2690.5,0.37156]
[1724714304674,1.95168858,2690.8,2690.6,0.37155]
[1724714304675,2.69780858,2690.8,2690.6,0.37155]
[1724714304980,0.37154,2690.7,2690.6,1.34]
[1724714305178,1.83094809,2690.7,2690.6,1.34]
[1724714307467,1.45940809,2690.7,2690.6,1.34]
[1724714307674,0.37154,2690.7,2690.6,1.34]
[1724714308182,0.37154,2690.7,2690.6,1.7053]
[1724714308777,0.37154,2690.7,2690.6,5.68991478]
[1724714308975,0.37154,2690.7,2690.6,6.05781478]
[1724714310180,0.74895265,2690.8,2690.6,6.42936478]
[1724714310387,0.74895265,2690.8,2690.7,1.34]
[1724714312775,0.00282265,2690.8,2690.7,1.34]
[1724714313087,1.45940809,2691.2,2691.1,0.37148]
[1724714313383,6.29980809,2691.5,2691.2,0.37146]
[1724714313580,6.67123809,2691.5,2691.3,1.7282]
[1724714313775,6.67123809,2691.5,2691.3,5.97202879]
[1724714313776,0.37144,2691.4,2691.3,5.97202879]
[1724714313990,6.67123809,2691.5,2691.3,4.63202879]
[1724714314188,4.84315333,2691.5,2691.3,4.63202879]
[1724714314783,5.21458333,2691.5,2691.3,4.63202879]
[1724714315406,4.84315333,2691.5,2691.3,4.63202879]
[1724714316686,5.21457333,2691.5,2691.3,4.63202879]
[1724714317891,0.75515333,2691.5,2691.3,4.63202879]
[1724714318894,0.75515333,2691.5,2691.3,5.00347879]
[1724714319100,0.37145333,2691.5,2691.4,0.37144]
[1724714319284,0.37145333,2691.5,2691.3,7.84202879]
[1724714319485,0.37145333,2691.5,2691.4,0.37144]
[1724714319686,0.00275333,2691.5,2691.4,0.37144]
[1724714319886,0.00275333,2691.5,2691.4,4.53582785]
[1724714332304,0.00275333,2691.5,2691.4,8.25102785]
[1724714334998,0.37417333,2691.5,2691.4,4.16438785]
[1724714335701,0.75507333,2691.5,2691.4,4.16438785]
[1724714336795,0.38365333,2691.5,2691.4,4.16438785]
[1724714337699,0.75507333,2691.5,2691.4,4.16438785]
[1724714338801,0.38365333,2691.5,2691.4,4.16438785]
[1724714339001,0.38365333,2691.5,2691.4,5.50438785]
[1724714340299,0.38365333,2691.5,2691.4,5.87582785]
[1724714341306,0.38365333,2691.5,2691.4,5.50438785]
[1724714341509,0.38365333,2691.5,2691.4,5.87582785]
[1724714341510,0.00275333,2691.5,2691.4,5.87582785]
[1724714341806,0.00275333,2691.5,2691.4,9.59102785]
[1724714344507,0.00275333,2691.5,2691.4,10.51962785]
[1724714344999,0.00275333,2691.5,2691.4,9.59102785]
[1724714345705,0.00014899,2691.5,2691.4,9.59102785]
[1724714350004,0.00014899,2691.5,2691.4,5.87582785]
[1724714350204,0.00014899,2691.5,2691.4,9.59102785]
[1724714352117,0.00014899,2691.5,2691.4,10.56417625]
[1724714353509,0.00014899,2691.5,2691.4,9.59102785]
[1724714353712,0.00014899,2691.5,2691.4,11.05036027]
[1724714353908,0.00014899,2691.5,2691.4,12.90785596]
[1724714354902,0.00014899,2691.5,2691.4,11.05036027]
[1724714356408,0.00014899,2691.5,2691.4,7.33516027]
[1724714357020,0.37156899,2691.5,2691.4,5.62372027]
[1724714357616,6.72593899,2691.5,2691.4,1.45933242]
[1724714357919,11.72593899,2691.5,2691.4,0.87333242]
[1724714358616,0.37145,2691.3,2691.2,1.94534915]
[1724714358816,1.71145,2691.3,2691.2,1.94534915]
[1724714359023,11.35609,2691.3,2691.2,1.94534915]
[1724714360114,10.01609,2691.3,2691.2,1.94534915]
[1724714360314,9.08745,2691.3,2691.2,1.94534915]
[1724714365026,0.37149,2691.1,2690.8,1.13032]
[1724714365219,0.3881,2691.0,2690.8,1.13032]
[1724714365417,0.3881,2691.0,2690.8,1.13031]
[1724714369149,0.75959,2691.0,2690.8,1.13031]
[1724714370124,0.3881,2691.0,2690.8,1.13031]
[1724714370627,0.3881,2691.0,2690.6,4.17980158]
[1724714370823,0.3881,2691.0,2690.6,3.2078]
[1724714370824,0.37153,2690.8,2690.6,3.2078]
[1724714371124,0.7782,2691.0,2690.4,1.71926158]
[1724714371125,0.37154,2690.7,2690.4,1.71926158]
[1724714371348,4.13879,2690.9,2690.3,0.97200158]
[1724714371629,0.37157,2690.5,2690.2,0.00974051]
[1724714371828,0.3866,2690.4,2690.2,0.00974051]
[1724714377323,0.3866,2690.4,2690.2,0.38134051]
[1724714377734,0.3866,2690.4,2690.2,0.00974051]
[1724714378131,0.75818,2690.4,2690.2,0.00974051]
[1724714378430,0.37159,2690.3,2690.2,0.00974051]
[1724714378730,0.75819,2690.4,2690.2,0.00974051]
[1724714378924,0.37159,2690.3,2690.2,0.00974051]
[1724714379330,0.75819,2690.4,2690.2,0.00974051]
[1724714379533,0.37159,2690.4,2690.2,0.00974051]
[1724714379731,0.37154,2690.7,2690.3,7.67971108]
[1724714379931,0.37154,2690.7,2690.4,0.3598]
[1724714380232,0.37156,2690.5,2690.4,0.3616]
[1724714381034,0.37156,2690.6,2690.4,0.3616]
[1724714381230,0.37156,2690.6,2690.4,0.7214]
[1724714381930,0.37156,2690.5,2690.4,0.7214]
[1724714382136,0.37154,2690.7,2690.5,1.34]
[1724714382338,0.37154,2690.7,2690.6,1.34]
[1724714382737,4.08834,2690.7,2690.6,1.34]
[1724714383334,0.37155,2690.6,2690.5,1.34]
[1724714385229,5.428,2690.8,2690.5,1.34]
[1724714385230,4.088,2690.8,2690.7,0.37154]
[1724714385436,4.088,2690.8,2690.7,1.71154]
[1724714385631,4.45952,2690.8,2690.7,1.34]
[1724714386341,0.37152,2690.8,2690.7,1.34]
[1724714388342,0.37152,2690.8,2690.7,1.7081]
[1724714390438,1.30436,2691.0,2690.6,0.37155]
[1724714390642,0.37153,2690.8,2690.7,1.34]
[1724714390842,0.37153,2690.8,2690.7,5.31111905]
[1724714391138,0.37153,2690.8,2690.7,3.97111905]
[1724714391438,0.37153,2690.8,2690.6,1.71155]
[1724714392032,5.4364,2690.8,2690.4,0.7214]
[1724714392334,0.37158,2690.4,2690.3,0.3858]
[1724714392736,0.74778,2690.4,2690.3,0.3858]
[1724714396241,0.3762,2690.4,2690.3,0.3858]
[1724714398346,0.74778,2690.4,2690.2,0.36924051]
[1724714400647,0.74778,2690.4,2690.2,0.74084051]
[1724714400949,6.88740117,2690.3,2690.2,0.00974051]
[1724714401145,6.15209,2690.3,2690.2,0.00974051]
[1724714402045,5.54781705,2690.3,2690.2,0.00974051]
[1724714402436,5.54781705,2690.3,2690.2,0.75794051]
[1724714403248,5.54781705,2690.3,2690.2,0.00974051]
[1724714404547,1.45942705,2690.3,2690.2,0.38135051]
[1724714404752,0.3762,2690.4,2690.3,0.37159]
[1724714405048,6.56832176,2690.8,2690.6,0.37155]
[1724714405049,1.45942705,2690.8,2690.6,0.37155]
[1724714405345,5.91893705,2690.9,2690.7,0.7686]
[1724714405555,0.37152,2690.8,2690.7,0.7686]
[1724714405751,5.91894705,2690.9,2690.7,0.7686]
[1724714405948,0.37152,2690.8,2690.7,0.7686]
[1724714406946,1.83094705,2690.8,2690.7,0.3854]
[1724714407152,0.37152,2690.8,2690.7,0.3854]
[1724714407555,1.83094705,2690.8,2690.7,0.3854]
[1724714407854,1.83094705,2690.8,2690.5,0.76116]
[1724714408057,1.83094705,2690.8,2690.5,1.12186]
[1724714409849,0.37154,2690.7,2690.5,0.7503]
[1724714410653,0.3888,2690.6,2690.5,0.7503]
[1724714411152,0.76036,2690.6,2690.4,0.97200158]
[1724714411351,0.37156,2690.5,2690.4,0.3544]
[1724714411551,2.21977705,2690.6,2690.5,4.03004438]
[1724714411745,0.37159,2690.3,2690.2,0.00974051]
[1724714411946,1.83164149,2690.3,2690.2,0.00974051]
[1724714412141,5.54844149,2690.3,2690.2,0.00974051]
[1724714412341,4.08839,2690.3,2690.2,0.00974051]
[1724714412756,0.37159,2690.3,2690.2,0.00974051]
[1724714413059,4.08839,2690.3,2690.2,0.00974051]
[1724714413649,1.83164149,2690.4,2690.2,0.00974051]
[1724714413852,0.37159,2690.3,2690.2,0.00974051]
[1724714414356,1.83163149,2690.4,2690.2,0.00974051]
[1724714415553,0.37159,2690.3,2690.2,0.00974051]
[1724714417259,5.54844149,2690.3,2690.2,0.00974051]
[1724714417656,0.37159,2690.3,2690.2,0.00974051]
[1724714419962,1.83164149,2690.4,2690.2,0.00974051]
[1724714421355,0.37159,2690.3,2690.2,0.00974051]
[1724714421551,1.83163149,2690.4,2690.2,0.38135051]
[1724714421753,1.83163149,2690.4,2690.2,0.00974051]
[1724714422056,1.83163149,2690.4,2690.2,0.38134051]
[1724714422259,1.83163149,2690.4,2690.3,4.2859018]
[1724714422661,1.46005149,2690.4,2690.3,4.2859018]
[1724714422962,1.46005149,2690.6,2690.5,0.37156]
[1724714423156,1.46005149,2690.6,2690.5,4.08836]
[1724714423362,1.46005149,2691.1,2691.0,0.37149]
[1724714423661,1.83152149,2691.2,2690.9,0.97198833]
[1724714423864,0.37148,2691.1,2691.0,0.7742]
[1724714424063,1.46005149,2691.1,2691.0,1.14569]
[1724714424362,1.46005149,2691.2,2691.0,5.36769549]
[1724714424555,1.46005149,2691.2,2691.1,0.37148]
[1724714424751,1.82385149,2691.3,2691.1,0.37148]
[1724714424956,2.19531149,2691.3,2691.1,4.10150894]
[1724714425155,2.19531149,2691.3,2691.1,4.47298894]
[1724714425360,2.19531149,2691.3,2691.1,4.10150894]
[1724714426461,0.37147,2691.2,2691.1,4.10150894]
[1724714426857,0.37149,2691.1,2690.9,40.8]
[1724714428360,0.37151,2690.9,2690.8,0.3568]
[1724714428754,0.37151,2690.9,2690.8,4.66725033]
[1724714433068,0.3715,2691.0,2690.8,4.66725033]
[1724714433469,0.3715,2691.0,2690.8,5.03877033]
[1724714433665,0.3518,2691.2,2690.8,4.66725033]
[1724714433666,0.37151,2690.9,2690.8,4.66725033]
[1724714434958,0.3715,2691.0,2690.8,4.66725033]
[1724714436267,0.3715,2691.0,2690.9,0.3829]
[1724714436963,0.37149,2691.1,2690.9,0.75441]
[1724714437166,0.3518,2691.2,2690.9,0.3829]
[1724714437167,0.37149,2691.0,2690.9,0.3829]
[1724714437376,0.37149,2691.1,2690.9,0.3829]
[1724714437768,0.37149,2691.1,2690.9,0.75441]
[1724714437968,0.37149,2691.1,2690.9,0.3829]
[1724714438282,0.37149,2691.0,2690.9,0.3829]
[1724714438775,0.37148,2691.1,2690.9,0.7544]
[1724714439080,0.37148,2691.2,2690.9,0.7544]
[1724714439272,0.37148,2691.1,2690.9,0.7544]
[1724714440575,0.37149,2691.0,2690.9,0.3829]
[1724714446572,0.37149,2691.1,2690.9,0.75441]
[1724714446881,0.37149,2691.0,2690.9,0.3829]
[1724714465398,0.37149,2691.0,2690.9,0.75441]
[1724714465591,0.37149,2691.0,2690.9,1.72639833]
[1724714465790,1.83154149,2691.1,2690.9,1.72639833]
[1724714466388,1.83154149,2691.1,2691.0,0.3529]
[1724714466589,2.31822533,2691.1,2691.0,4.538647]
[1724714466797,0.37149,2691.1,2691.0,4.538647]
[1724714467003,1.46126611,2691.1,2691.0,10.56663533]
[1724714467206,0.00014899,2691.5,2691.0,10.56663533]
[1724714467207,1.46126611,2691.3,2691.0,16.45262333]
[1724714467404,1.94688432,2691.5,2691.0,16.45262333]
[1724714467405,1.4614151,2691.5,2691.4,0.37144]
[1724714467595,1.4614151,2691.5,2691.4,45.8269886]
[1724714467901,1.4614151,2691.5,2691.4,50.11883492]
[1724714468294,0.00014899,2691.5,2691.4,50.11883492]
[1724714468501,0.00014899,2691.5,2691.4,53.83403492]
[1724714468808,0.00014899,2691.5,2691.4,13.03397683]
[1724714469304,0.00014899,2691.5,2691.4,11.57616998]
[1724714470005,0.00014899,2691.5,2691.4,13.03397683]
[1724714470403,0.00014899,2691.5,2691.4,12.54769254]
[1724714470706,0.00014899,2691.5,2691.4,10.69000888]
[1724714470908,0.00014899,2691.5,2691.4,11.57614651]
[1724714471208,0.00014899,2691.5,2691.4,13.03395336]
[1724714471505,0.00014899,2691.5,2691.4,11.57614651]
[1724714471703,0.00014899,2691.5,2691.4,13.03395336]
[1724714471912,0.00014899,2691.5,2691.4,11.57614651]
[1724714472205,0.00014899,2691.5,2691.4,13.03395336]
[1724714472403,0.00014899,2691.5,2691.4,12.54707444]
[1724714472902,0.00014899,2691.5,2691.4,10.68941425]
[1724714473298,0.00014899,2691.5,2691.4,12.54701624]
[1724714473495,0.00014899,2691.5,2691.4,10.68941425]
[1724714476212,0.00014899,2691.5,2691.4,9.71848632]
[1724714476409,0.00014899,2691.5,2691.4,4.29184632]
[1724714476410,0.37157899,2691.5,2691.4,4.29184632]
[1724714476710,0.37157899,2691.5,2691.3,1.71145]
[1724714476910,0.3618,2691.4,2691.3,1.71145]
[1724714480314,0.00014899,2691.5,2691.4,0.37144]
[1724714480512,0.00014899,2691.5,2691.4,0.75824]
[1724714480711,0.00014899,2691.5,2691.4,5.05990231]
[1724714490322,4.088,2692.0,2691.9,0.37137]
[1724714490515,0.37135,2692.1,2691.9,1.71137]
[1724714490715,1.82176611,2692.2,2691.9,1.71137]
[1724714490914,2.19309611,2692.2,2692.1,1.34]
[1724714491120,0.73183,2692.2,2692.1,1.34]
[1724714491322,0.7360982,2692.2,2692.1,1.34309681]
[1724714491519,0.3647682,2692.2,2692.1,1.34309681]
[1724714492221,0.3647682,2692.2,2692.1,1.71443681]
[1724714492826,0.3647682,2692.2,2692.1,1.34309681]
[1724714493012,0.3647682,2692.2,2692.1,5.66309035]
[1724714493214,0.3647682,2692.2,2692.1,4.32309035]
[1724714493520,0.3647682,2692.2,2692.1,5.66309035]
[1724714495213,0.3647682,2692.2,2692.1,5.29175035]
[1724714498527,0.7360982,2692.2,2692.1,5.29175035]
[1724714500330,0.3647682,2692.2,2692.1,5.66309035]
[1724714501325,0.7360982,2692.2,2692.1,5.66309035]
[1724714501526,0.7360982,2692.2,2692.1,5.29175035]
[1724714502527,0.3647682,2692.2,2692.1,5.66309035]
[1724714503028,0.7360982,2692.2,2692.1,5.66309035]
[1724714503723,0.7360982,2692.2,2692.1,3.95175035]
[1724714503926,0.7360982,2692.2,2692.1,5.29175035]
[1724714506932,0.7360982,2692.2,2692.1,5.66309035]
[1724714508933,0.0042682,2692.2,2692.1,5.66309035]
[1724714510035,0.0042682,2692.2,2692.1,8.87089035]
[1724714513038,0.0042682,2692.2,2692.1,12.58529035]
[1724714513233,0.0042682,2692.2,2692.1,13.55621828]
[1724714513933,0.0042682,2692.2,2692.1,12.58529035]
[1724714514437,0.0042682,2692.2,2692.1,13.55621828]
[1724714514835,0.0042682,2692.2,2692.1,12.58529035]
[1724714515035,1.46126611,2692.7,2692.5,0.37129]
[1724714515244,0.3692,2692.6,2692.5,0.37129]
[1724714515433,0.74047,2692.6,2692.5,0.37129]
[1724714515636,0.74047,2692.6,2692.5,4.59507824]
[1724714516033,0.74363654,2692.6,2692.5,4.22378824]
[1724714516232,0.74363654,2692.6,2692.5,5.56378824]
[1724714516438,4.45723654,2692.6,2692.5,1.34]
[1724714516946,0.37129,2692.5,2692.4,1.34]
[1724714517145,0.3627,2692.5,2692.4,1.7113]
[1724714518242,0.3627,2692.5,2692.4,2.2781233]
[1724714518441,0.3627,2692.5,2692.4,1.7113]
[1724714520936,4.0771,2692.5,2692.1,0.37443681]
[1724714521134,0.37132,2692.3,2692.2,0.37133]
[1724714521340,0.3832,2692.4,2692.2,1.71133]
[1724714521341,0.75451,2692.4,2692.2,1.71133]
[1724714521548,0.37129,2692.5,2692.3,0.37132]
[1724714521736,0.37129,2692.5,2692.4,1.34]
[1724714521937,4.08569,2692.5,2692.4,1.34]
[1724714523047,4.44569,2692.5,2692.4,1.34]
[1724714523750,0.73129,2692.5,2692.4,1.34]
[1724714524342,0.73129,2692.5,2692.4,1.7113]
[1724714524938,0.74364654,2692.6,2692.5,0.37129]
[1724714525141,0.74364654,2692.6,2692.5,1.09949]
[1724714525443,0.74364654,2692.6,2692.5,0.73129]
[1724714530854,0.74364654,2692.6,2692.5,1.08989]
[1724714531048,0.00316654,2692.6,2692.5,1.08989]
[1724714531354,0.00316654,2692.6,2692.5,5.2097999]
[1724714532158,0.37443654,2692.6,2692.5,4.8511999]
[1724714532544,0.37443654,2692.6,2692.5,4.1199099]
[1724714532943,0.37443654,2692.6,2692.4,0.37129]
[1724714532944,0.37129,2692.5,2692.4,0.37129]
[1724714533149,0.7513,2692.5,2692.4,0.37129]
[1724714533651,1.12259,2692.5,2692.4,1.71129]
[1724714534446,2.58385611,2692.5,2692.4,1.71129]
[1724714536253,0.3873,2692.5,2692.4,1.71129]
[1724714536857,0.75859,2692.5,2692.4,1.71129]
[1724714537563,0.3873,2692.5,2692.4,1.71129]
[1724714537758,1.84856611,2692.5,2692.4,1.71129]
[1724714538850,0.3873,2692.5,2692.4,1.71129]
[1724714539061,0.75859,2692.5,2692.4,1.71129]
[1724714540360,2.21985611,2692.5,2692.4,1.71129]
[1724714541354,2.21985611,2692.5,2692.4,2.68221793]
[1724714541555,2.21985611,2692.5,2692.4,1.71129]
[1724714542360,2.21985611,2692.5,2692.4,2.68221793]
[1724714542656,1.83255611,2692.5,2692.4,2.68221793]
[1724714542861,2.18475611,2692.5,2692.4,1.71129]
[1724714543763,2.18475611,2692.5,2692.4,2.68221793]
[1724714544061,1.83255611,2692.5,2692.4,2.68221793]
[1724714550364,1.83255611,2692.5,2692.4,4.53925788]
[1724714552572,1.83221659,2692.5,2692.4,4.53931975]
[1724714553271,1.83221659,2692.5,2692.4,4.53927361]
[1724714553478,1.83221659,2692.5,2692.4,3.56834568]
[1724714554061,1.83221659,2692.5,2692.4,5.02615253]
[1724714555670,1.46092659,2692.5,2692.4,5.02615253]
[1724714555874,1.46092659,2692.5,2692.4,9.03409801]
[1724714556972,1.83221659,2692.5,2692.4,9.03409801]
[1724714557970,1.83221659,2692.5,2692.4,9.03403481]
[1724714558478,0.37129,2692.5,2692.4,9.03403481]
[1724714560271,2.32118187,2692.6,2692.5,0.37129]
[1724714560575,1.30263654,2692.6,2692.5,0.97211566]
[1724714560770,1.29952,2692.5,2692.4,4.98006114]
[1724714560977,1.66992,2692.5,2692.4,0.97211566]
[1724714561169,1.29956,2692.4,2692.3,0.97211566]
[1724714561374,4.00763825,2692.4,2692.3,2.82934031]
[1724714561569,7.72203825,2692.4,2692.3,2.82934031]
[1724714561763,9.06203825,2692.4,2692.3,0.97211566]
[1724714561967,11.74176,2692.4,2692.1,0.97521247]
[1724714562171,3.24875416,2692.2,2692.1,0.97521247]
[1724714562369,3.24814328,2692.2,2692.1,0.00309681]
[1724714562571,6.96254328,2692.2,2692.1,0.00309681]
[1724714562762,7.4504277,2692.2,2692.1,0.00309681]
[1724714563373,5.01406,2692.2,2692.1,0.00309681]
[1724714564577,10.01406,2692.2,2692.1,0.00309681]
[1724714564875,12.4504277,2692.2,2692.1,0.00309681]
[1724714565268,7.4504277,2692.2,2692.1,0.00309681]
[1724714565476,10.01406,2692.2,2692.1,0.00309681]
[1724714565773,5.01406,2692.2,2692.1,0.00309681]
[1724714566368,11.96057219,2692.2,2692.1,0.00309681]
[1724714567276,6.96057219,2692.2,2692.1,0.00309681]
[1724714567672,1.94651219,2692.2,2692.1,1.71443681]
[1724714567875,1.45956364,2692.2,2692.1,5.87599495]
[1724714568181,1.45956364,2692.3,2692.2,0.37133]
[1724714568479,2.20976364,2692.4,2692.3,4.53287814]
[1724714568976,1.45956364,2692.4,2692.3,0.37132]
[1724714569173,1.83085364,2692.5,2692.3,4.47278846]
[1724714569374,1.83085364,2692.5,2692.4,1.7275]
[1724714569570,0.37129,2692.5,2692.4,1.34]
[1724714571077,1.83059734,2692.5,2692.4,1.7113]
[1724714571574,1.83059734,2692.5,2692.4,1.34]
[1724714571975,0.37129,2692.5,2692.4,1.34]
[1724714572574,3.7144,2692.5,2692.2,0.7487]
[1724714572774,1.45942066,2692.4,2692.3,1.34]
[1724714573076,0.3713,2692.4,2692.3,1.34]
[1724714580684,0.3713,2692.4,2692.3,1.6977]
[1724714581589,1.83061321,2692.4,2692.3,1.6977]
[1724714582180,1.83059391,2692.4,2692.3,1.6977]
[1724714586391,1.83059391,2692.4,2692.3,2.0614]
[1724714586782,1.83059391,2692.4,2692.3,2.43272]
[1724714587178,1.83059391,2692.4,2692.3,2.0614]
[1724714588990,0.3713,2692.4,2692.3,2.0614]
[1724714589200,1.83072872,2692.4,2692.3,2.0614]
[1724714590483,1.83072872,2692.4,2692.3,0.7214]
[1724714590681,1.83072872,2692.4,2692.3,2.43272]
[1724714591190,0.3713,2692.4,2692.3,2.43272]
[1724714591390,1.45942872,2692.5,2692.4,0.3713]
[1724714591588,0.00316654,2692.6,2692.5,0.37129]
[1724714591788,0.00316654,2692.6,2692.5,1.34340566]
[1724714591989,0.00316654,2692.6,2692.5,8.7598064]
[1724714593393,0.37443654,2692.6,2692.5,8.7598064]
[1724714593693,0.37443654,2692.6,2692.5,9.32624035]
[1724714594381,0.37443654,2692.6,2692.5,4.64052469]
[1724714596283,0.75243654,2692.6,2692.5,4.64052469]
[1724714597494,0.75243654,2692.6,2692.5,4.07409074]
[1724714601291,0.00316654,2692.6,2692.5,4.07409074]
[1724714603095,0.37443654,2692.6,2692.5,4.07409074]
[1724714608791,0.37443654,2692.6,2692.5,5.07409074]
[1724714609191,0.00316654,2692.6,2692.5,5.07409074]
[1724714609997,0.37122,2693.0,2692.9,0.37122]
[1724714610194,0.37122,2693.0,2692.9,1.71122]
[1724714610595,0.37122,2693.0,2692.9,2.27783375]
[1724714610797,0.37122,2693.0,2692.9,1.90661375]
[1724714611001,0.37484798,2693.0,2692.9,2.27784375]
[1724714611802,1.83344555,2693.0,2692.9,2.27784375]
[1724714612893,1.83344555,2693.0,2692.9,1.90661375]
[1724714613201,1.83344555,2693.0,2692.9,1.34]
[1724714613399,1.83344555,2693.0,2692.9,1.90661771]
[1724714616201,1.83344555,2693.0,2692.9,1.34]
[1724714617303,0.37484798,2693.0,2692.9,1.90660413]
[1724714618405,1.83344555,2693.0,2692.9,1.90660413]
[1724714618707,1.83344555,2693.0,2692.9,1.34]
[1724714619406,1.83344555,2693.0,2692.9,1.90662053]
[1724714619709,1.83344555,2693.0,2692.8,0.75394]
[1724714619710,0.37123,2692.9,2692.8,2.09394]
[1724714620012,0.75723,2692.9,2692.8,6.72302295]
[1724714620311,0.37485798,2693.0,2692.9,0.37123]
[1724714620521,0.37485798,2693.0,2692.9,0.93786031]
[1724714621604,0.00362798,2693.0,2692.9,6.40693925]
[1724714621906,0.00362798,2693.0,2692.9,7.37747931]
[1724714622297,0.00362798,2693.0,2692.9,6.40693925]
[1724714622929,0.00362798,2693.0,2692.9,5.84030894]
[1724714623312,0.00362798,2693.0,2692.9,6.40675321]
[1724714623809,0.00362798,2693.0,2692.9,10.12035321]
[1724714625106,0.00362798,2693.0,2692.9,9.55390894]
[1724714625307,0.00362798,2693.0,2692.9,10.12035101]
[1724714626309,0.00362798,2693.0,2692.9,9.55390894]
[1724714626610,0.00362798,2693.0,2692.9,10.1203194]